bitfinex/quotes_SOLUSD_20260310
["timestamp","ask_amount","ask_price","bid_price","bid_amount"]
[1773172572724,0.766438,86.016,85.984,0.75705834]
[1773172572910,0.766438,86.009,85.978,0.75705834]
[1773172573113,0.766438,86.009,85.981,0.75705834]
[1773172573311,40.68963111,86.017,85.981,0.75705834]
[1773172573714,0.766438,86.016,85.981,0.75705834]
[1773172574813,11.6258792,86.015,85.982,11.63034123]
[1773172575020,11.6258792,86.015,85.983,0.75705834]
[1773172575617,11.62529225,86.02,85.991,0.75705834]
[1773172576708,0.766438,86.024,85.993,0.75705834]
[1773172577325,1.45303218,86.027,85.993,0.75705834]
[1773172577326,0.766438,86.019,85.993,0.75705834]
[1773172578626,4.15098364,86.02,85.993,0.75705834]
[1773172578627,0.766438,86.017,85.993,0.75705834]
[1773172578827,0.766438,86.017,85.984,0.75705834]
[1773172579028,0.766438,86.017,85.979,0.75705834]
[1773172579029,0.766438,86.009,85.979,0.75705834]
[1773172579223,40.68915807,86.018,85.964,0.75705834]
[1773172579224,0.766438,85.999,85.964,0.75705834]
[1773172579437,0.74977419,85.989,85.964,0.75705834]
[1773172579647,0.74977419,85.999,85.964,0.75705834]
[1773172580432,0.74977419,85.989,85.956,11.63382709]
[1773172580742,0.74977419,85.987,85.959,0.76616026]
[1773172581724,11.6298002,85.986,85.962,0.76616026]
[1773172583733,0.74977419,85.985,85.962,0.76616026]
[1773172584533,11.63007071,85.984,85.962,0.76616026]
[1773172585551,11.6295913,85.988,85.964,0.76616026]
[1773172586341,12.37936549,85.988,85.964,0.76616026]
[1773172586947,0.74977419,85.987,85.964,0.76616026]
[1773172589157,12.37916864,85.989,85.964,0.76616026]
[1773172592156,41.45265478,85.989,85.964,0.76616026]
[1773172594960,40.69814764,85.999,85.971,0.76616026]
[1773172596537,29.07010546,85.999,85.971,0.76616026]
[1773172601062,29.81987965,85.999,85.971,0.76616026]
[1773172601365,29.07010546,85.999,85.971,0.76616026]
[1773172601557,0.74977419,85.999,85.971,0.76616026]
[1773172602543,11.62817739,85.998,85.971,0.76616026]
[1773172602964,40.69862088,85.998,85.971,0.76616026]
[1773172605266,0.74977419,85.997,85.971,0.76616026]
[1773172608465,41.47784145,85.996,85.971,0.76616026]
[1773172609645,1.45333627,86.009,85.941,61.8]
[1773172609646,0.74224832,86.02,85.991,0.77204833]
[1773172609877,0.74224832,86.009,85.971,0.77204833]
[1773172610056,0.74224832,86.008,85.971,0.77204833]
[1773172610259,0.74224832,85.999,85.971,0.77204833]
[1773172610648,0.74224832,85.997,85.971,0.77204833]
[1773172613367,0.74224832,85.989,85.943,29.08878543]
[1773172613565,0.74224832,85.979,85.942,11.63575434]
[1773172614571,0.74224832,85.989,85.96,4.15582452]
[1773172615382,11.6295297,85.988,85.962,11.63304716]
[1773172615679,11.6295297,85.988,85.963,0.77204833]
[1773172617573,0.74224832,85.991,85.963,0.77204833]
[1773172617771,0.74224832,85.989,85.963,0.77204833]
[1773172620880,0.74224832,85.987,85.952,0.77204833]
[1773172621181,0.74224832,85.987,85.954,0.77204833]
[1773172621873,0.74224832,85.969,85.94,0.1]
[1773172622074,0.74224832,85.959,85.94,0.1]
[1773172623366,11.63358849,85.958,85.94,0.87204833]
[1773172623581,0.74224832,85.957,85.94,0.1]
[1773172625086,0.74224832,85.957,85.922,0.77204833]
[1773172625382,11.63385918,85.956,85.933,0.77204833]
[1773172626482,0.74224832,85.955,85.933,0.77204833]
[1773172626683,0.74224832,85.955,85.924,0.77204833]
[1773172626983,0.74224832,85.949,85.924,0.77204833]
[1773172627283,0.74224832,85.949,85.925,0.77204833]
[1773172627481,12.37719037,85.948,85.925,0.77204833]
[1773172628889,0.74224832,85.947,85.925,0.77204833]
[1773172629092,0.74224832,85.947,85.921,0.77204833]
[1773172631592,11.6352128,85.946,85.922,0.77204833]
[1773172632994,29.08464795,85.956,85.924,0.77204833]
[1773172632995,0.74224832,85.948,85.924,0.77204833]
[1773172635095,0.74224832,85.946,85.924,0.77204833]
[1773172635674,11.63507743,85.947,85.926,0.77204833]
[1773172638487,11.63453595,85.951,85.926,0.77204833]
[1773172638699,12.37678427,85.951,85.926,0.77204833]
[1773172639193,12.37678427,85.951,85.921,0.75708179]
[1773172639194,4.15582452,85.94,85.921,0.75708179]
[1773172639394,0.7265747,85.939,85.92,1e-08]
[1773172639577,0.7265747,85.939,85.91,0.85708179]
[1773172639780,0.7265747,85.939,85.911,0.75708179]
[1773172640380,0.7265747,85.95,85.912,0.75708179]
[1773172640587,0.7265747,85.95,85.923,0.75708179]
[1773172640899,0.7265747,85.949,85.923,0.75708179]
[1773172641097,0.7265747,85.939,85.912,0.75708179]
[1773172641599,0.7265747,85.939,85.91,0.1]
[1773172642296,0.7265747,85.909,85.891,0.75708179]
[1773172642482,0.7265747,85.919,85.891,0.75708179]
[1773172642678,0.7265747,85.936,85.901,0.75708179]
[1773172644895,0.7265747,85.942,85.911,0.75708179]
[1773172645102,0.7265747,85.939,85.911,0.75708179]
[1773172645994,11.63629593,85.938,85.912,11.63981748]
[1773172646196,0.7265747,85.973,85.931,0.75708179]
[1773172646383,0.7265747,85.973,85.941,0.75708179]
[1773172647087,1.45350527,85.999,85.96,4.16188373]
[1773172647088,0.7265747,85.986,85.96,4.16188373]
[1773172647287,0.7265747,85.986,85.961,0.75708179]
[1773172648502,11.62993545,85.985,85.961,0.75708179]
[1773172648689,0.7265747,85.984,85.961,0.75708179]
[1773172649396,0.7265747,85.995,85.96,4.16188373]
[1773172649600,0.7265747,85.989,85.958,0.75708179]
[1773172650104,0.7265747,85.989,85.961,0.75708179]
[1773172650897,11.62844783,85.996,85.961,0.75708179]
[1773172651196,0.7265747,86.013,85.981,0.75708179]
[1773172651893,0.7265747,85.999,85.971,0.75708179]
[1773172653491,0.7265747,85.997,85.961,0.75708179]
[1773172655108,11.62817739,85.998,85.971,0.75708179]
[1773172655504,11.62767003,86.002,85.973,0.75708179]
[1773172655706,0.7265747,86.001,85.973,0.75708179]
[1773172656093,11.62767003,86.002,85.973,0.75708179]
[1773172657710,11.62696059,86.007,85.975,0.75708179]
[1773172657912,0.7265747,86.006,85.975,0.75708179]
[1773172664516,0.7265747,86.004,85.975,0.75708179]
[1773172664723,0.7265747,86.004,85.971,11.63182933]
[1773172665022,0.7265747,86.008,85.981,0.75708179]
[1773172666002,0.7265747,86.008,85.972,0.75708179]
[1773172666822,11.62696059,86.007,85.973,11.63155874]
[1773172667014,0.75101473,86.006,85.974,0.77598669]
[1773172668819,11.62696059,86.007,85.976,0.77598669]
[1773172669325,12.37797532,86.007,85.976,0.77598669]
[1773172669506,0.78684478,86.006,85.976,0.77598669]
[1773172671123,0.78684478,86.004,85.978,0.76863824]
[1773172672311,0.78684478,86.002,85.98,0.76863824]
[1773172673724,0.78684478,86.0,85.971,11.63182933]
[1773172673935,0.78684478,85.989,85.961,0.76863824]
[1773172674232,0.78684478,85.997,85.971,0.76863824]
[1773172675643,11.62777177,86.001,85.971,0.76863824]
[1773172675939,12.41461655,86.001,85.973,0.76863824]
[1773172676342,0.78684478,85.999,85.968,12.40084833]
[1773172676734,0.78684478,85.999,85.969,0.76863824]
[1773172676936,0.78684478,85.999,85.971,0.76863824]
[1773172678243,11.62817739,85.998,85.965,0.76863824]
[1773172678445,0.78684478,85.997,85.965,0.76863824]
[1773172679648,0.78684478,85.997,85.97,4.16188373]
[1773172679953,0.78684478,85.997,85.971,0.76863824]
[1773172680448,8.25789326,86.023,85.991,0.76863824]
[1773172680629,8.25789326,86.023,85.972,11.63169403]
[1773172680630,0.78684478,86.019,86.0,4.16188373]
[1773172680830,7.47104848,86.023,86.001,0.76863824]
[1773172681131,7.47104848,86.023,86.011,0.76863824]
[1773172682160,11.62209592,86.043,86.012,0.76863824]
[1773172682359,11.62209592,86.043,86.021,0.76863824]
[1773172682645,40.6747346,86.049,86.023,0.76863824]
[1773172682853,0.78684478,86.048,86.023,0.76863824]
[1773172683238,0.78684478,86.066,86.031,0.76863824]
[1773172683559,0.78684478,86.066,86.04,4.16188373]
[1773172683864,0.78684478,86.073,86.041,0.76863824]
[1773172684033,11.61831511,86.071,86.051,0.76863824]
[1773172684355,0.78684478,86.07,86.041,0.76863824]
[1773172684538,0.78684478,86.068,86.042,11.622231]
[1773172684941,0.78684478,86.059,86.03,4.16188373]
[1773172685144,0.78684478,86.059,86.02,4.16188373]
[1773172685353,40.6650478,86.069,85.99,12.90563497]
[1773172685354,0.78684478,86.039,86.006,0.76863824]
[1773172685645,0.78684478,86.039,86.01,4.93052197]
[1773172687166,0.78684478,86.039,85.99,12.90563497]
[1773172687167,0.78684478,86.037,86.003,0.76863824]
[1773172687654,0.78684478,86.037,86.01,4.16188373]
[1773172688261,11.62304151,86.036,86.011,11.62641987]
[1773172688554,0.78684478,86.035,86.011,11.62641987]
[1773172688753,0.78684478,86.035,86.001,29.83806766]
[1773172688957,0.78684478,86.035,86.002,11.62763656]
[1773172689339,0.78684478,86.019,85.991,11.62912397]
[1773172689945,0.78684478,86.019,85.991,12.39776221]
[1773172690967,12.41231851,86.018,85.991,12.39776221]
[1773172691164,0.78684478,86.028,86.001,0.76863824]
[1773172691469,0.78684478,86.039,86.001,0.76863824]
[1773172692453,0.78684478,86.039,86.01,4.16188373]
[1773172693045,11.62277133,86.038,86.01,4.16188373]
[1773172693265,0.78684478,86.037,86.01,4.16188373]
[1773172694448,0.78684478,86.037,86.01,15.78837984]
[1773172695377,0.78684478,86.035,86.01,16.55701808]
[1773172696883,0.78684478,86.033,86.006,11.62704019]
[1773172697165,0.78684478,86.033,86.02,4.16188373]
[1773172697473,0.78684478,86.049,86.011,0.76863824]
[1773172698968,0.78684478,86.047,86.012,11.6262847]
[1773172699979,0.73202932,86.045,86.012,11.6262847]
[1773172701178,0.73202932,86.045,85.949,46.53893922]
[1773172701179,0.73202932,86.039,86.008,11.6268055]
[1773172702788,0.73202932,86.037,86.002,11.62763656]
[1773172706477,0.73202932,86.035,86.002,12.39435622]
[1773172706963,0.73202932,86.035,86.003,0.76671966]
[1773172707567,0.73202932,86.033,86.005,0.76671966]
[1773172710580,0.73202932,86.031,86.006,11.62709578]
[1773172710772,0.73202932,86.031,86.006,12.39381544]
[1773172710970,0.73202932,86.031,86.007,0.76671966]
[1773172712385,0.73202932,86.041,86.011,0.76671966]
[1773172712579,0.73202932,86.037,86.009,0.76671966]
[1773172712758,0.73202932,86.037,86.011,0.76671966]
[1773172717786,11.62304151,86.036,86.012,11.6262847]
[1773172717992,11.62304151,86.036,86.013,0.76671966]
[1773172719394,11.62128554,86.049,86.021,0.76671966]
[1773172719576,40.6744994,86.049,86.013,0.76671966]
[1773172719894,0.73202932,86.046,86.015,0.76671966]
[1773172721992,0.73202932,86.039,86.003,0.76671966]
[1773172722186,0.73202932,86.039,86.011,0.76671966]
[1773172723591,0.73202932,86.037,86.013,0.76671966]
[1773172725195,0.73202932,86.035,86.013,0.76671966]
[1773172726507,0.73202932,86.033,86.013,0.76671966]
[1773172727002,0.73202932,86.033,86.015,0.77602674]
[1773172727384,0.76512208,86.043,86.015,0.77602674]
[1773172728703,0.76512208,86.041,86.017,0.77602674]
[1773172730599,0.75467865,86.039,86.012,0.72182402]
[1773172732806,11.62277133,86.038,86.014,0.72182402]
[1773172733894,0.75467865,86.037,86.016,0.72182402]
[1773172736004,40.6744994,86.049,86.011,11.62630262]
[1773172736005,0.75467865,86.035,86.011,11.62630262]
[1773172736707,0.75467865,86.035,86.011,12.34812664]
[1773172737107,0.75467865,86.035,86.012,0.72182402]
[1773172738291,11.62261462,86.04,86.014,0.72182402]
[1773172738488,0.75467865,86.062,86.031,0.72182402]
[1773172738692,0.75467865,86.078,86.051,0.72182402]
[1773172738895,0.75467865,86.098,86.052,0.72182402]
[1773172739093,0.75467865,86.098,86.071,0.72182402]
[1773172739393,7.59993163,86.099,86.081,0.72182402]
[1773172739599,0.75467865,86.118,86.091,0.72182402]
[1773172739799,0.95467865,86.1,86.077,0.72182402]
[1773172739999,0.75467865,86.098,86.077,0.72182402]
[1773172740406,0.75467865,86.106,86.081,0.72182402]
[1773172740604,0.75467865,86.114,86.091,0.72182402]
[1773172740800,0.75467865,86.114,86.085,0.72182402]
[1773172741808,4.1520856,86.11,86.08,4.1520856]
[1773172742010,4.1520856,86.1,86.06,4.1520856]
[1773172742197,0.75467865,86.089,86.051,0.72182402]
[1773172742402,0.75467865,86.079,86.051,11.62101544]
[1773172743112,0.75467865,86.079,86.045,11.62176075]
[1773172743615,0.75467865,86.079,86.045,12.34358477]
[1773172743812,0.75467865,86.079,86.046,0.72182402]
[1773172744208,0.75467865,86.079,86.025,29.06110359]
[1773172744414,0.75467865,86.069,86.041,0.72182402]
[1773172745203,0.75467865,86.069,86.024,29.06138211]
[1773172745512,0.75467865,86.069,86.014,17.63470422]
[1773172745513,0.75467865,86.059,86.025,11.62452775]
[1773172746217,0.75467865,86.059,86.025,12.34635177]
[1773172746535,0.75467865,86.057,86.025,12.34635177]
[1773172747020,0.75467865,86.057,86.026,0.72182402]
[1773172748523,0.75467865,86.055,86.026,12.34621664]
[1773172748719,0.75467865,86.055,86.027,11.6242575]
[1773172748906,0.75467865,86.055,86.027,12.34608152]
[1773172751925,0.75467865,86.053,86.028,0.72182402]
[1773172753112,11.62088039,86.052,86.03,0.72182402]
[1773172753308,11.62088039,86.052,86.031,0.72182402]
[1773172753707,12.37555904,86.052,86.031,0.72182402]
[1773172754106,0.75467865,86.051,86.031,0.72182402]
[1773172755329,0.75467865,86.051,86.032,12.34540594]
[1773172755910,12.37574351,86.051,86.032,12.34540594]
[1773172756116,12.37574351,86.051,86.032,0.72182402]
[1773172756316,0.75467865,86.05,86.024,0.72182402]
[1773172756716,0.75467865,86.05,86.026,0.72182402]
[1773172756927,0.75467865,86.05,86.021,11.62504232]
[1773172757222,0.75467865,86.05,86.022,0.72182402]
[1773172758311,0.75467865,86.048,86.014,17.63470422]
[1773172758515,0.75467865,86.048,86.014,29.26071585]
[1773172759312,0.75467865,86.048,86.015,0.77751202]
[1773172759529,0.77450583,86.048,86.014,30.03822787]
[1773172760321,1.45252565,86.057,86.014,29.26071585]
[1773172760322,0.77450583,86.039,86.014,29.26071585]
[1773172761324,0.77450583,86.029,86.001,0.77751202]
[1773172762312,0.77450583,86.027,86.002,11.62763656]
[1773172762517,0.77450583,86.027,86.003,0.77751202]
[1773172763726,0.77450583,86.027,86.002,11.82703656]
[1773172764318,0.77450583,86.038,86.005,0.77751202]
[1773172764518,0.77450583,86.035,86.005,0.77751202]
[1773172764918,11.62310602,86.036,86.002,0.1994]
[1773172764919,0.77450583,86.029,86.002,0.1994]
[1773172766119,0.77450583,86.029,86.004,0.77751202]
[1773172766323,0.77450583,86.035,86.007,11.62684715]
[1773172766522,0.77450583,86.029,86.002,0.1994]
[1773172769136,0.77450583,86.027,86.003,11.62750136]
[1773172769343,0.77450583,86.027,86.004,0.77751202]
[1773172769641,0.77450583,86.027,86.002,0.1994]
[1773172770141,11.62412237,86.028,86.004,0.77751202]
[1773172770319,0.77450583,86.031,86.011,0.77751202]
[1773172770523,0.77450583,86.031,86.005,0.77751202]
[1773172771141,0.77450583,86.029,86.002,0.1994]
[1773172771341,0.77450583,86.029,86.003,12.40501338]
[1773172771556,0.77450583,86.029,86.004,0.77751202]
[1773172773154,0.77450583,86.027,86.004,1.40571202]
[1773172773935,0.77450583,86.027,86.004,0.6282]
[1773172774555,0.77450583,86.027,86.004,12.25548175]
[1773172774746,0.77450583,86.027,86.004,13.03299377]
[1773172775051,0.77450583,86.027,86.004,1.40571202]
[1773172775450,0.77450583,86.025,86.004,1.40571202]
[1773172775643,0.77450583,86.025,86.004,0.6282]
[1773172776040,0.77450583,86.025,86.005,0.77751202]
[1773172776256,0.77450583,86.025,86.004,0.6282]
[1773172776937,0.77450583,86.025,86.005,11.62723097]
[1773172777454,0.77450583,86.025,86.004,1.40571202]
[1773172777653,0.77450583,86.025,86.004,13.03295456]
[1773172777959,0.77450583,86.023,86.004,13.03295456]
[1773172779355,1.4528633,86.037,86.005,0.77751202]
[1773172779563,0.77450583,86.035,86.007,0.77751202]
[1773172780262,0.77450583,86.029,86.004,0.6282]
[1773172781539,11.62412237,86.028,86.004,0.6282]
[1773172781744,0.77450583,86.027,86.004,0.6282]
[1773172782162,0.77450583,86.025,85.994,0.77751202]
[1773172783459,1.45304907,86.026,86.001,0.77751202]
[1773172783652,12.39851866,86.029,86.003,0.77751202]
[1773172783845,0.77450583,86.028,86.003,0.77751202]
[1773172785463,0.77450583,86.028,86.002,11.62763656]
[1773172785464,0.77450583,86.038,86.011,0.77751202]
[1773172786161,0.77450583,86.036,86.003,0.77751202]
[1773172786761,0.77450583,86.036,86.011,0.77751202]
[1773172787556,11.62128554,86.049,86.021,0.74367549]
[1773172788365,11.62128554,86.049,86.023,0.74367549]
[1773172788756,0.76381337,86.068,86.041,0.74367549]
[1773172789665,0.70930261,86.119,86.061,0.75852005]
[1773172789864,0.70930261,86.119,86.04,4.15256051]
[1773172789865,0.70930261,86.079,86.04,0.75852005]
[1773172790067,0.70930261,86.079,86.041,0.75852005]
[1773172790362,0.70930261,86.077,86.043,0.75852005]
[1773172790563,4.15256051,86.06,86.033,11.62339308]
[1773172790764,4.15256051,86.06,86.02,4.15256051]
[1773172790765,0.70930261,86.059,86.02,4.15256051]
[1773172790962,0.70930261,86.059,86.021,0.75852005]
[1773172791371,0.70930261,86.065,86.041,0.75852005]
[1773172791549,0.70930261,86.065,86.035,0.75852005]
[1773172792165,0.70930261,86.065,86.031,0.75852005]
[1773172792563,0.70930261,86.075,86.041,0.75852005]
[1773172792758,0.70930261,86.069,86.041,0.75852005]
[1773172793067,0.70930261,86.059,86.033,0.75852005]
[1773172793262,0.70930261,86.049,86.035,0.1994]
[1773172793466,0.70930261,86.049,86.02,0.75852005]
[1773172793665,0.70930261,86.049,86.021,0.75852005]
[1773172794267,0.70930261,86.039,86.005,0.75852005]
[1773172794569,0.70930261,86.029,86.0,0.75852005]
[1773172794770,0.70930261,86.029,86.001,0.75852005]
[1773172795471,0.70930261,86.019,85.995,0.75852005]
[1773172795669,0.70930261,86.027,86.001,0.75852005]
[1773172795865,0.70930261,86.034,86.001,0.75852005]
[1773172796064,4.15256051,86.03,86.001,0.75852005]
[1773172796258,0.70930261,86.019,85.979,0.75852005]
[1773172796452,1.3756236,86.029,85.979,0.75852005]
[1773172796453,4.15256051,86.01,85.979,0.75852005]
[1773172796657,11.62669023,86.009,85.981,0.75852005]
[1773172796869,0.70930261,86.013,85.981,0.75852005]
[1773172797260,0.70930261,86.013,85.98,44.8597017]
[1773172797261,0.70930261,86.031,86.001,0.75852005]
[1773172797463,0.70930261,86.03,86.001,0.75852005]
[1773172797665,0.70930261,86.029,86.001,0.75852005]
[1773172798566,0.70930261,86.029,86.002,11.62763656]
[1773172798767,0.70930261,86.029,86.003,0.75852005]
[1773172799168,0.70930261,86.028,86.003,0.75852005]
[1773172799364,0.70930261,86.044,86.006,0.75852005]
[1773172799567,0.70930261,86.044,86.002,40.69672797]
[1773172799568,0.70930261,86.043,86.011,0.75852005]
[1773172799780,0.70930261,86.039,86.011,0.75852005]
[1773172800279,0.70930261,86.039,85.988,1.16295297]
[1773172800459,0.70930261,86.019,85.981,0.75852005]
[1773172800659,0.70930261,86.017,85.988,0.75852005]
[1773172800876,0.70930261,85.999,85.954,1.16341298]
[1773172801086,0.70930261,85.999,85.961,0.75852005]
[1773172801267,0.70930261,85.999,85.971,0.75852005]
[1773172801463,0.70930261,86.018,85.991,0.75852005]
[1773172801662,0.70930261,86.018,85.981,0.75852005]
[1773172801663,0.70930261,86.017,85.981,0.75852005]
[1773172802565,0.70930261,86.017,85.991,12.38760114]
[1773172802760,0.70930261,86.015,85.982,11.63034123]
[1773172802968,0.70930261,86.015,85.983,0.75852005]
[1773172803982,0.70930261,86.015,85.99,4.91108056]
[1773172804181,0.70930261,86.015,85.991,0.75852005]
[1773172804571,0.70930261,86.022,85.991,0.75852005]
[1773172804777,0.70930261,86.03,86.001,0.75852005]
[1773172805371,0.70930261,86.029,85.993,0.75852005]
[1773172806168,0.70930261,86.029,86.001,0.75852005]
[1773172806368,0.70930261,86.045,86.011,0.75852005]
[1773172806672,0.70930261,86.039,86.01,4.15256051]
[1773172806872,0.70930261,86.037,86.003,12.38602141]
[1773172807071,0.70930261,86.037,86.003,11.62750136]
[1773172807279,0.70930261,86.037,86.004,0.75852005]
[1773172808781,0.70930261,86.037,86.01,4.15256051]
[1773172808981,0.70930261,86.037,86.011,0.75852005]
[1773172809184,0.70930261,86.053,86.021,0.75852005]
[1773172809491,0.70930261,86.058,86.031,0.75852005]
[1773172810291,0.70930261,86.049,86.02,4.15256051]
[1773172810468,0.70930261,86.049,86.014,0.75852005]
[1773172810669,0.70930261,86.049,86.02,4.15256051]
[1773172810882,0.70930261,86.049,86.021,0.75852005]
[1773172811176,29.04713769,86.067,86.0,4.15256051]
[1773172811177,0.70930261,86.062,86.031,0.75852005]
[1773172811491,0.70930261,86.059,86.031,0.75852005]
[1773172812292,11.61948854,86.063,86.031,0.75852005]
[1773172812495,0.70930261,86.067,86.041,0.75852005]
[1773172812787,29.04058019,86.087,86.022,40.68726604]
[1773172812788,0.70930261,86.079,86.051,0.75852005]
[1773172813667,4.15256051,86.09,86.052,11.62088039]
[1773172813668,0.70930261,86.089,86.052,11.62088039]
[1773172813870,0.70930261,86.079,86.052,11.62088039]
[1773172814098,0.70930261,86.079,86.046,11.62157299]
[1773172814679,0.70930261,86.079,86.05,4.15256051]
[1773172815486,0.70930261,86.079,86.051,12.37953549]
[1773172815672,0.70930261,86.077,86.051,12.37953549]
[1773172815872,0.70930261,86.077,86.052,0.75852005]
[1773172816073,0.70930261,86.095,86.07,4.15256051]
[1773172816573,0.70930261,86.095,86.068,0.75852005]
[1773172816985,0.70930261,86.095,86.053,0.75852005]
[1773172816986,0.70930261,86.089,86.053,0.75852005]
[1773172817782,0.70930261,86.079,86.041,11.62236608]
[1773172818174,0.70930261,86.059,86.022,11.62483611]
[1773172818493,0.70930261,86.049,86.022,11.62483611]
[1773172818986,0.70930261,86.049,86.011,0.75852005]
[1773172819588,0.70930261,86.049,86.013,0.72056535]
[1773172819794,11.62263624,86.039,86.014,11.62601436]
[1773172819975,0.71539577,86.05,86.021,0.72056535]
[1773172820484,0.71539577,86.061,86.031,0.72056535]
[1773172820680,12.33514329,86.061,86.031,0.72056535]
[1773172821096,0.71539577,86.059,86.021,0.72056535]
[1773172822095,0.71539577,86.059,86.02,4.15256051]
[1773172822096,12.33546595,86.058,86.023,0.72056535]
[1773172822293,12.33546595,86.058,86.031,0.72056535]
[1773172822698,0.71539577,86.057,86.023,0.72056535]
[1773172822895,0.71539577,86.049,86.015,0.72056535]
[1773172823096,0.71539577,86.039,86.0,4.15256051]
[1773172823395,0.71539577,86.029,86.0,15.78034397]
[1773172823599,0.71539577,86.029,86.001,0.72056535]
[1773172824179,11.62412237,86.028,86.002,11.62763656]
[1773172824388,11.62412237,86.028,86.002,12.34820191]
[1773172824807,11.62412237,86.028,86.003,0.72056535]
[1773172825196,0.71539577,86.029,86.003,0.72056535]
[1773172825385,0.71539577,86.029,86.003,0.1472756]
[1773172826500,11.62320041,86.035,86.003,0.1472756]
[1773172827205,12.33859618,86.035,86.003,0.1472756]
[1773172827807,0.71539577,86.034,86.003,0.1472756]
[1773172828206,11.62263624,86.039,86.011,0.48709561]
[1773172829310,0.71539577,86.039,86.012,11.6262847]
[1773172829806,0.71539577,86.048,86.02,4.15255379]
[1773172830305,0.71539577,86.048,86.013,0.4870388]
[1773172830512,0.71539577,86.048,86.02,4.63953644]
[1773172830807,11.62128554,86.049,86.021,0.48698265]
[1773172831011,11.62079804,86.053,86.03,4.63953644]
[1773172831311,11.62079804,86.053,86.031,12.11120369]
[1773172831812,0.71539577,86.053,86.031,11.62371703]
[1773172832314,0.71539577,86.053,86.025,11.62444171]
[1773172833609,0.71539577,86.053,86.025,0.48847737]
[1773172833985,12.33627616,86.052,86.025,0.48847737]
[1773172836709,12.33627616,86.052,86.026,11.62439262]
[1773172837007,0.71539577,86.051,86.026,11.62439262]
[1773172839407,0.71539577,86.051,86.021,42.34156164]
[1773172839605,0.71539577,86.051,86.022,0.49131579]
[1773172839809,0.71539577,86.051,86.03,4.15255379]
[1773172840007,12.33571225,86.057,86.03,4.64386958]
[1773172840510,0.71539577,86.057,86.031,11.62371703]
[1773172840708,0.71539577,86.057,86.032,0.49177003]
[1773172841893,0.71539577,86.057,86.033,12.11566586]
[1773172842704,0.71539577,86.057,86.034,0.49266291]
[1773172843899,0.71539577,86.057,86.033,11.62344681]
[1773172844200,0.71539577,86.055,86.033,11.62344681]
[1773172845316,0.71539577,86.055,86.021,29.06240773]
[1773172845317,0.71539577,86.055,86.028,0.49438796]
[1773172845516,0.75776464,86.07,86.041,0.49438796]
[1773172845722,29.03921879,86.091,86.061,0.73521]
[1773172846610,29.03921879,86.091,86.062,11.6195301]
[1773172847417,11.61467165,86.098,86.063,0.73521]
[1773172847625,0.75776464,86.097,86.063,0.73521]
[1773172848507,0.75776464,86.108,86.064,0.73521]
[1773172848703,4.15255379,86.1,86.071,0.73521]
[1773172848931,0.75776464,86.099,86.064,0.73521]
[1773172849910,0.73837917,86.097,86.07,4.15255379]
[1773172850228,0.73837917,86.113,86.071,0.72834173]
[1773172850434,0.73837917,86.109,86.071,0.72834173]
[1773172850727,11.61251364,86.114,86.064,40.6674025]
[1773172850728,0.73837917,86.099,86.064,40.6674025]
[1773172850926,0.73837917,86.079,86.051,11.62100554]
[1773172851836,46.44822978,86.118,86.054,0.72834173]
[1773172851837,0.73837917,86.083,86.054,0.72834173]
[1773172852129,11.6166273,86.084,86.054,0.72834173]
[1773172852329,0.73837917,86.083,86.054,0.72834173]
[1773172853523,0.73837917,86.079,86.054,0.72834173]
[1773172854223,11.61737029,86.078,86.055,11.62047527]
[1773172854739,11.61689583,86.082,86.056,0.72834173]
[1773172855216,0.73837917,86.086,86.061,0.72834173]
[1773172855523,0.73837917,86.095,86.07,4.15255379]
[1773172855924,0.73837917,86.095,86.061,0.72834173]
[1773172856726,0.73837917,86.093,86.062,11.6195301]
[1773172856915,0.73837917,86.093,86.062,12.34787183]
[1773172857126,0.73837917,86.093,86.063,0.72834173]
[1773172858322,0.73837917,86.089,86.062,11.6195301]
[1773172858932,12.35438805,86.089,86.063,0.72834173]
[1773172859151,0.73837917,86.089,86.063,0.72834173]
[1773172859314,0.73837917,86.099,86.07,4.88089552]
[1773172859632,0.73837917,86.099,86.07,0.72834173]
[1773172860834,0.73837917,86.096,86.071,11.61831511]
[1773172862916,11.61507636,86.095,86.071,0.72834173]
[1773172863118,12.35345553,86.095,86.071,0.72834173]
[1773172863532,0.73837917,86.109,86.081,0.72834173]
[1773172863731,0.73837917,86.118,86.081,0.72834173]
[1773172864639,0.73837917,86.118,86.09,4.15255379]
[1773172864825,0.73837917,86.118,86.091,0.72834173]
[1773172865027,0.73837917,86.116,86.092,11.61548111]
[1773172866733,0.73837917,86.116,86.093,0.72834173]
[1773172867129,0.2,86.12,86.101,0.72834173]
[1773172868138,0.73837917,86.119,86.095,0.72834173]
[1773172868641,0.2,86.12,86.101,0.72834173]
[1773172869734,0.73837917,86.118,86.092,0.72834173]
[1773172871437,0.2,86.12,86.092,0.72834173]
[1773172871733,0.2,86.12,85.917,32.56699035]
[1773172871734,7.52577019,86.129,86.1,4.15255379]
[1773172871941,4.35255379,86.14,86.093,41.81524628]
[1773172871942,0.2,86.14,86.131,0.65544123]
[1773172872236,0.1,86.15,86.131,0.65544123]
[1773172872434,0.1,86.15,86.12,4.15255379]
[1773172872435,0.1,86.15,86.14,4.15255379]